fUSD/lending_fUSD_20260311
["ID","MTS","AMOUNT","RATE_DAILY","PERIOD"]
[408194488,1773205840809,-283.32010552,0.000196,2]
[408194489,1773205840818,-800.0,0.000196,7]
[408194490,1773205840828,-168.0,0.00019632,2]
[408194491,1773205840837,-1000.0,0.000197,7]
[408194492,1773205840846,-168.0,0.0001979,2]
[408194493,1773205840857,-2000.0,0.00019797,2]
[408194494,1773205840867,-200.0,0.000198,7]
[408194495,1773205840879,-17405.78691222,0.0001987,2]
[408194496,1773205840890,-758.01210753,0.000199,2]
[408194497,1773205840902,-200.0,0.000199,7]
[408194498,1773205840913,-240.91961516,0.000199,2]
[408194499,1773205840923,-1071.66340102,0.000199,2]
[408194500,1773205840936,-1476.36887848,0.000199,2]
[408194501,1773205840946,-5774.90029983,0.000199,2]
[408194502,1773205840957,-4094.76711425,0.000199,2]
[408194503,1773205840966,-3030.81112781,0.000199,2]
[408194504,1773205840977,-2145.201921,0.000199,2]
[408194505,1773205840988,-8050.27658682,0.000199,2]
[408194506,1773205840998,-160.0,0.00019933,2]
[408194507,1773205841007,-168.0,0.00019959,2]
[408194508,1773205841016,-119496.68907408,0.0001998,2]
[408194509,1773205841026,-210.83211931,0.0001999,2]
[408194510,1773205841035,-210.83211931,0.0001999,2]
[408194511,1773205841045,-210.83211931,0.0001999,2]
[408194512,1773205841055,-151.0,0.00019997,2]
[408194513,1773205841065,-500.0,0.00019999,2]
[408194514,1773205841074,-500.0,0.00019999,2]
[408194515,1773205841084,-500.0,0.00019999,2]
[408194516,1773205841093,-500.0,0.00019999,2]
[408194517,1773205841103,-500.0,0.00019999,2]
[408194518,1773205841112,-510.41061214,0.00019999,2]
[408194519,1773205841122,-373.2111413,0.00019999,2]
[408194520,1773205841135,-373.6267978,0.00019999,2]
[408194521,1773205841144,-500.0,0.00019999,2]
[408194522,1773205841154,-514.55974854,0.00019999,2]
[408194523,1773205841163,-247.41680921,0.00019999,2]
[408194524,1773205841172,-173.19176644,0.00019999,2]
[408194525,1773205841181,-1500.0,0.0002,2]
[408194526,1773205841191,-1500.0,0.0002,2]
[408194527,1773205841200,-2544.262751,0.0002,2]
[408194528,1773205841210,-4949609.02447429,0.0002,2]
[408194529,1773205841219,-1793.32906339,0.0002,2]
[408194530,1773205841228,-418.84062553,0.0002,2]
[408194531,1773205841238,-695.89,0.0002,2]
[408194532,1773205841247,-1354854.50796028,0.0002,2]
[408194533,1773205841261,-1250.04743747,0.0002,2]
[408194534,1773205841280,-522.9232407,0.0002,2]
[408194548,1773205843028,-2204.0,0.0002,2]
[408194559,1773205845878,-296.98389022,0.0001989,2]
[408194560,1773205845888,-1056.57199635,0.0002,2]
[408194562,1773205868489,369.087774,7.945e-05,2]
[408194563,1773205942597,768.64927804,8.6e-05,2]
[408194564,1773205947014,500.0,8.6e-05,2]
[408194565,1773205947520,500.0,8.6e-05,2]
[408194566,1773205948054,500.0,8.6e-05,2]
[408194567,1773205948552,965.43684842,8.6e-05,2]
[408194568,1773205950382,873.88139152,8.6e-05,2]
[408194572,1773206131315,902.82,9.306e-05,2]
[408194573,1773206131513,902.82,9.796e-05,2]
[408194574,1773206131719,902.82,0.00010286,2]
[408194575,1773206131922,902.82,0.00010775,2]
[408194576,1773206132234,902.82,0.00011265,2]
[408194577,1773206132307,485.91,0.00011755,2]
[408194578,1773206132331,416.91,0.00011755,2]
[408194579,1773206132503,902.82,0.00012245,2]
[408194580,1773206132921,902.82,0.00012735,2]
[408194581,1773206133126,902.82,0.00013224,2]
[408194582,1773206236203,522.14872557,8.6e-05,2]
[408194583,1773206241755,500.0,8.6e-05,2]
[408194584,1773206242315,669.12630316,8.6e-05,2]
[408194586,1773206714759,-263.0,0.00013714,2]
[408194587,1773206714786,-237.18143312,0.00013714,2]
[408194588,1773206714817,-297.57310934,0.00013714,2]
[408194589,1773206714844,-500.0,0.00013714,2]
[408194590,1773206714871,-250.0,0.00013714,2]
[408194591,1773206714900,-902.82,0.00013714,2]
[408194592,1773206717447,-175.84376146,0.00014104,2]
[408194593,1773206717475,-902.82,0.00014204,2]
[408194594,1773206717502,-252.0,0.00014272,2]
[408194595,1773206717530,-1138.68247708,0.00014272,2]
[408194598,1773207032424,-2664.73280262,0.00014135,2]
[408194599,1773207032487,-3918.27719738,0.00014135,2]
[408194600,1773207032498,-175.84376146,0.00014172,2]
[408194601,1773207032507,-491.54511265,0.00014256,2]
[408194602,1773207032518,-268.0,0.00014256,2]
[408194603,1773207032528,-590.0,0.00014271,2]
[408194604,1773207032539,-300.0,0.00014271,2]
[408194605,1773207032550,-151.0,0.00014272,2]
[408194606,1773207032561,-172.65844754,0.00014272,2]
[408194607,1773207032572,-225.2267,0.00014272,2]
[408194608,1773207032583,-5000.0,0.00014272,2]
[408194609,1773207032593,-500.0,0.00014273,2]
[408194610,1773207032603,-502.91886886,0.00014273,2]
[408194611,1773207032617,-639.42076342,0.00014273,2]
[408194612,1773207032628,-500.0,0.00014273,2]
[408194613,1773207032639,-407.71239442,0.00014273,2]
[408194614,1773207032651,-500.0,0.00014273,2]
[408194615,1773207032661,-500.0,0.00014273,2]
[408194616,1773207032671,-428.14160978,0.00014273,2]
[408194617,1773207032681,-500.0,0.00014273,2]
[408194618,1773207032692,-196.75738103,0.00014273,2]
[408194619,1773207032704,-150.0,0.00014279,2]
[408194620,1773207032715,-200.0,0.0001428,2]
[408194621,1773207032725,-500.0,0.0001428,2]
[408194622,1773207032735,-500.0,0.0001428,2]
[408194623,1773207032747,-151.0,0.0001428,2]
[408194624,1773207032757,-151.0,0.0001428,2]
[408194625,1773207032768,-500.0,0.0001428,2]
[408194626,1773207032778,-151.0,0.0001428,2]
[408194627,1773207032788,-175.16390861,0.0001428,2]
[408194629,1773207032798,-151.0,0.0001428,2]
[408194631,1773207032807,-500.0,0.0001428,2]
[408194633,1773207032816,-151.0,0.0001428,2]
[408194635,1773207032826,-500.0,0.0001428,2]
[408194637,1773207032838,-151.0,0.0001428,2]
[408194639,1773207032847,-500.0,0.0001428,2]
[408194641,1773207032857,-151.0,0.0001428,2]
[408194643,1773207032866,-500.0,0.0001428,2]
[408194645,1773207032876,-151.0,0.0001428,2]
[408194647,1773207032885,-500.0,0.0001428,2]
[408194649,1773207032895,-151.0,0.0001428,2]
[408194651,1773207032905,-151.0,0.0001428,2]
[408194652,1773207032914,-500.0,0.0001428,2]
[408194653,1773207032923,-151.0,0.0001428,2]
[408194654,1773207032933,-151.0,0.0001428,2]
[408194655,1773207032942,-500.0,0.0001428,2]
[408194656,1773207032952,-151.0,0.0001428,2]
[408194657,1773207032962,-151.0,0.0001428,2]
[408194658,1773207032972,-500.0,0.0001428,2]
[408194659,1773207032982,-151.0,0.0001428,2]
[408194660,1773207032992,-151.0,0.0001428,2]
[408194661,1773207033002,-151.0,0.0001428,2]
[408194662,1773207033011,-151.0,0.0001428,2]
[408194663,1773207033021,-151.0,0.0001428,2]
[408194664,1773207033031,-151.0,0.0001428,2]
[408194665,1773207033044,-151.0,0.0001428,2]
[408194666,1773207033054,-151.0,0.0001428,2]
[408194667,1773207033064,-151.0,0.0001428,2]
[408194668,1773207033074,-151.0,0.0001428,2]
[408194669,1773207033085,-151.0,0.0001428,2]
[408194670,1773207033095,-163.42785597,0.0001428,2]
[408194671,1773207033105,-500.0,0.00014281,2]
[408194672,1773207033115,-78399.3524,0.00014289,2]
[408194673,1773207033126,-363.808754,0.00014331,7]
[408194674,1773207033137,-392.81812,0.00014331,7]
[408194675,1773207033363,-902.82,0.00014694,2]
[408194676,1773207033376,-1000.0,0.00014821,2]
[408194677,1773207033386,-150.0,0.00014828,2]
[408194678,1773207033397,-150.0,0.00014828,2]
[408194679,1773207033407,-177.99151511,0.00014828,2]
[408194680,1773207033419,-150.0,0.00014828,2]
[408194681,1773207033429,-500.0,0.00014828,2]
[408194682,1773207033439,-150.0,0.00014828,2]
[408194683,1773207033449,-500.0,0.00014828,2]
[408194684,1773207033460,-150.0,0.00014828,2]
[408194685,1773207033470,-150.0,0.00014828,2]
[408194686,1773207033480,-150.0,0.00014828,2]
[408194687,1773207033490,-150.0,0.00014828,2]
[408194688,1773207033501,-150.0,0.00014828,2]
[408194689,1773207033511,-500.0,0.00014828,2]
[408194690,1773207033522,-150.0,0.00014828,2]
[408194691,1773207033533,-150.0,0.00014828,2]
[408194692,1773207033544,-150.0,0.00014828,2]
[408194693,1773207033555,-500.0,0.00014828,2]
[408194694,1773207033566,-500.39228547,0.00014833,2]
[408194695,1773207033577,-150.0,0.00014883,2]
[408194696,1773207033588,-168.09099825,0.00014883,2]
[408194697,1773207033598,-150.0,0.00014883,2]
[408194698,1773207033609,-500.0,0.00014883,2]
[408194699,1773207033619,-150.0,0.00014883,2]
[408194700,1773207033630,-500.0,0.00014883,2]
[408194701,1773207033640,-150.0,0.00014883,2]
[408194702,1773207033650,-150.0,0.00014883,2]
[408194703,1773207033660,-150.0,0.00014883,2]
[408194704,1773207033671,-500.0,0.00014883,2]
[408194705,1773207033681,-150.84360211,0.00014883,2]
[408194706,1773207033691,-150.0,0.00014883,2]
[408194707,1773207033701,-150.0,0.00014883,2]
[408194708,1773207033714,-508.22060755,0.00014883,2]
[408194709,1773207033724,-435.12819784,0.000149,2]
[408194710,1773207033734,-150.0,0.00014938,2]
[408194711,1773207033743,-150.0,0.00014938,2]
[408194712,1773207033754,-150.0,0.00014938,2]
[408194713,1773207033763,-250.0,0.00014938,2]
[408194714,1773207033773,-250.0,0.00014938,2]
[408194715,1773207033784,-150.0,0.00014992,2]
[408194716,1773207033793,-150.0,0.00014992,2]
[408194717,1773207033812,-150.0,0.00014992,2]
[408194718,1773207033824,-891.77974006,0.00015,30]
[408194719,1773207033835,-904.00581093,0.00015,30]
[408194720,1773207033845,-500.0,0.00015,30]
[408194721,1773207033856,-678.73613672,0.00015,30]
[408194722,1773207033866,-500.0,0.00015,30]
[408194723,1773207033877,-500.0,0.00015,30]
[408194724,1773207033888,-500.0,0.00015,30]
[408194725,1773207033899,-500.0,0.00015,30]
[408194726,1773207033909,-500.0,0.00015,30]
[408194727,1773207033919,-500.0,0.00015,30]
[408194728,1773207033928,-500.0,0.00015,30]
[408194729,1773207033938,-500.0,0.00015,30]
[408194730,1773207033948,-500.0,0.00015,30]
[408194731,1773207033960,-500.0,0.00015,30]
[408194732,1773207033970,-637.61999316,0.00015,30]
[408194733,1773207033980,-500.0,0.00015,30]
[408194734,1773207033990,-543.25685673,0.00015,30]
[408194735,1773207034000,-881.14285643,0.00015,30]
[408194736,1773207034010,-500.0,0.00015,30]
[408194737,1773207034022,-500.0,0.00015,30]
[408194738,1773207034033,-150.0,0.00015047,2]
[408194739,1773207034044,-150.0,0.00015047,2]
[408194740,1773207034056,-150.0,0.00015047,2]
[408194741,1773207034068,-250.0,0.00015102,2]
[408194742,1773207034078,-250.0,0.00015102,2]
[408194743,1773207034087,-250.0,0.00015102,2]
[408194744,1773207034099,-902.82,0.00015183,2]
[408194745,1773207034110,-506.03669351,0.00015368,2]
[408194746,1773207034122,-150.0,0.00015408,2]
[408194747,1773207034132,-723.69751442,0.00015454,2]
[408194748,1773207034142,-902.82,0.00015673,2]
[408194749,1773207034153,-5000.0,0.00015699,2]
[408194750,1773207034166,-250.0,0.00015699,2]
[408194751,1773207034176,-300.0,0.00015699,2]
[408194752,1773207034186,-300.0,0.00015699,2]
[408194753,1773207034196,-5000.0,0.00015699,2]
[408194754,1773207034206,-250.0,0.00015699,2]
[408194755,1773207034215,-250.0,0.00015699,2]
[408194756,1773207034225,-194.5969468,0.00015699,2]
[408194757,1773207034235,-150.0,0.00015715,2]
[408194758,1773207034245,-2293.06923532,0.00015888,2]
[408194759,1773207034255,-2796.6,0.00015913,2]
[408194760,1773207034265,-581.88,0.0001593,2]
[408194761,1773207034276,-58093.63,0.00015978,2]
[408194762,1773207034287,-296.32,0.00015988,2]
[408194763,1773207034298,-150.6,0.00016,2]
[408194764,1773207034308,-150.0,0.0001607,2]
[408194765,1773207034319,-500.0,0.00016115,2]
[408194766,1773207034330,-565.6707529,0.00016115,2]
[408194767,1773207034340,-150.99,0.00016116,2]
[408194768,1773207034350,-9999.99,0.00016116,2]
[408194769,1773207034360,-8288.36,0.00016116,2]
[408194770,1773207034371,-150.0,0.00016125,2]
[408194771,1773207034381,-902.82,0.00016163,2]
[408194772,1773207034393,-500.0,0.00016173,2]
[408194773,1773207034403,-589.24209404,0.00016173,2]
[408194774,1773207034413,-500.53605254,0.00016173,2]
[408194775,1773207034424,-500.0,0.00016173,2]
[408194776,1773207034434,-150.0,0.0001618,2]
[408194777,1773207034444,-150.0,0.00016234,2]
[408194778,1773207034455,-235.61378813,0.00016289,2]
[408194779,1773207034465,-4399.57,0.00016344,2]
[408194780,1773207034475,-1227.16,0.00016347,2]
[408194781,1773207034485,-150.0,0.00016438,2]
[408194782,1773207034495,-151.31,0.00016438,2]
[408194783,1773207034505,-150.0,0.00016493,2]
[408194784,1773207034515,-150.0,0.00016548,2]
[408194785,1773207034526,-150.0,0.00016602,2]
[408194786,1773207034536,-902.82,0.00016653,2]
[408194787,1773207034546,-166.66,0.00016653,2]
[408194788,1773207034556,-150.0,0.00016657,2]
[408194789,1773207034567,-2000.0,0.00016697,2]
[408194790,1773207034577,-250.0,0.00016712,2]
[408194791,1773207034587,-210.45,0.00016721,2]
[408194792,1773207034603,-150.0,0.00016726,2]
[408194793,1773207034613,-500.0,0.00016726,2]
[408194794,1773207034623,-150.0,0.00016726,2]
[408194795,1773207034633,-150.0,0.00016726,2]
[408194796,1773207034645,-150.0,0.00016726,2]
[408194797,1773207034655,-151.14564353,0.00016781,2]
[408194798,1773207034666,-504.0416572,0.00016781,2]
[408194799,1773207034676,-150.0,0.00016781,2]
[408194800,1773207034687,-150.0,0.00016781,2]
[408194801,1773207034698,-150.0,0.00016781,2]
[408194802,1773207034710,-150.0,0.00016836,2]
[408194803,1773207034720,-150.0,0.00016836,2]
[408194804,1773207034730,-150.0,0.0001689,2]
[408194805,1773207034740,-150.0,0.0001689,2]
[408194806,1773207034752,-150.0,0.00016945,2]
[408194807,1773207034762,-150.0,0.00016945,2]
[408194808,1773207034772,-250.0,0.00017,2]
[408194809,1773207034783,-250.0,0.00017,2]
[408194810,1773207034792,-503.0,0.00017,2]
[408194811,1773207034802,-151.0,0.00017019,2]
[408194812,1773207034813,-902.82,0.00017143,2]
[408194813,1773207034823,-166.66,0.00017203,2]
[408194814,1773207034834,-902.82,0.00017632,2]
[408194815,1773207034845,-166.66,0.00017753,2]
[408194816,1773207034854,-295.15547733,0.00017808,2]
[408194817,1773207034864,-581.88,0.00017921,2]
[408194818,1773207034874,-902.82,0.00018122,2]
[408194819,1773207034884,-166.66,0.00018303,2]
[408194820,1773207034895,-902.82,0.00018612,2]
[408194821,1773207034905,-2217.05,0.00018701,2]
[408194822,1773207034916,-4252.2201,0.000188,2]
[408194823,1773207034926,-500.0,0.00018809,2]
[408194824,1773207034936,-800.0,0.00018815,2]
[408194825,1773207034945,-166.66,0.00018852,2]
[408194826,1773207034955,-446.22118414,0.00018858,2]
[408194827,1773207034964,-1833.47675235,0.00018872,2]
[408194828,1773207034974,-2500.0,0.000189,2]
[408194829,1773207034983,-500.0,0.00018999,2]
[408194830,1773207034993,-500.0,0.00018999,2]
[408194831,1773207035002,-500.0,0.00018999,2]
[408194832,1773207035015,-500.0,0.00018999,2]
[408194833,1773207035025,-500.0,0.00018999,2]
[408194834,1773207035035,-500.0,0.00018999,2]
[408194835,1773207035045,-500.0,0.00018999,2]
[408194836,1773207035055,-500.0,0.00018999,2]
[408194837,1773207035065,-500.0,0.00018999,2]
[408194838,1773207035075,-500.0,0.00018999,2]
[408194839,1773207035086,-502.71493075,0.00018999,2]
[408194840,1773207035096,-79771.61970524,0.00019,2]
[408194841,1773207035231,-13156.48845497,0.00019,2]
[408194842,1773207035243,-54353.98942388,0.00019,2]
[408194843,1773207035255,-4319.12123826,0.00019,2]
[408194844,1773207035266,-534.06656813,0.00019,2]
[408194845,1773207035278,-392.0164969,0.00019,2]
[408194846,1773207035291,-2167.10816787,0.00019,2]
[408194847,1773207035300,-4.6844164,0.00019044,2]
[408194848,1773207035312,-390.37271931,0.00019044,2]
[408194849,1773207038133,-1898.01209955,0.00019044,2]
[408194850,1773207038143,-200.0,0.00019158,2]
[408194851,1773207038153,-168.0,0.00019235,2]
[408194852,1773207038162,-800.0,0.00019286,2]
[408194853,1773207038171,-168.0,0.00019304,2]
[408194854,1773207038180,-166.66,0.00019402,2]
[408194855,1773207038189,-1000.0,0.000195,2]
[408194856,1773207038198,-150.0,0.00019516,2]
[408194857,1773207038207,-151.03632871,0.00019516,2]
[408194858,1773207038216,-150.0,0.00019516,2]
[408194859,1773207038226,-150.0,0.00019516,2]
[408194860,1773207038235,-150.0,0.00019516,2]
[408194861,1773207038244,-150.51755335,0.00019516,2]
[408194862,1773207038254,-206.44664571,0.00019516,2]
[408194863,1773207038263,-500.0,0.00019526,2]
[408194864,1773207038272,-150.0,0.00019571,2]
[408194865,1773207038283,-1120.99870013,0.000196,2]
[408194866,1773207038292,-1116.79088042,0.000196,2]
[408194867,1773207038302,-1137.55823535,0.000196,2]
[408194868,1773207038312,-1039.33367087,0.000196,2]
[408194869,1773207038321,-298.91048628,0.000196,2]
[408194870,1773207038333,-716.53688012,0.000196,2]
[408194871,1773207038343,-1013.26919889,0.000196,2]
[408194872,1773207038352,-1078.93897195,0.000196,2]
[408194873,1773207038361,-1046.30225555,0.000196,2]
[408194874,1773207038370,-1149.31897017,0.000196,2]
[408194875,1773207038379,-1067.51846324,0.000196,2]
[408194876,1773207038387,-1099.79166507,0.000196,2]
[408194877,1773207038397,-1080.92545999,0.000196,2]
[408194878,1773207038406,-1142.49068932,0.000196,2]
[408194879,1773207038415,-1132.0490061,0.000196,2]
[408194880,1773207038425,-1099.04477717,0.000196,2]
[408194881,1773207038434,-200.0,0.00019626,2]
[408194882,1773207038443,-299.25807466,0.000197,2]
[408194883,1773207038452,-800.0,0.00019756,2]
[408194884,1773207038462,-168.0,0.0001979,2]
[408194885,1773207038471,-168.0,0.00019811,2]
[408194886,1773207038481,-160.0,0.00019878,2]
[408194887,1773207038490,-172.95802059,0.00019879,2]
[408194888,1773207038499,-160.42119784,0.000199,5]
[408194889,1773207038508,-153.95497541,0.000199,5]
[408194890,1773207038519,-165.64957036,0.000199,2]
[408194891,1773207038528,-164.0,0.000199,2]
[408194892,1773207038537,-200.0,0.000199,2]
[408194894,1773207038546,-180.36256799,0.000199,2]
[408194895,1773207038555,-160.61307676,0.000199,2]
[408194896,1773207038576,-714.44226736,0.000199,2]
[408194897,1773207038585,-593.96778044,0.000199,2]
[408194898,1773207038593,-5366.85105788,0.000199,2]
[408194899,1773207038602,-581.88,0.00019912,2]
[408194900,1773207038611,-200.0,0.00019933,2]
[408194901,1773207038621,-200.0,0.0001998,2]
[408194902,1773207038630,-6357.9861352,0.00019995,2]
[408194903,1773207038639,-254.33513539,0.00019997,2]
[408194904,1773207038649,-369.90820983,0.00019999,2]
[408194905,1773207038659,-500.0,0.00019999,2]
[408194906,1773207038668,-75986.4071118,0.00019999,2]
[408194907,1773207038678,-500.0,0.00019999,2]
[408194908,1773207038687,-500.0,0.00019999,2]
[408194909,1773207038695,-500.0,0.00019999,2]
[408194910,1773207038705,-2202.6901619,0.00019999,2]
[408194911,1773207038719,-3000.0,0.00019999,2]
[408194912,1773207038728,-3000.0,0.00019999,2]
[408194913,1773207038738,-3000.0,0.00019999,2]
[408194914,1773207038750,-3000.0,0.00019999,2]
[408194915,1773207038760,-3000.0,0.00019999,2]
[408194916,1773207038769,-3000.0,0.00019999,2]
[408194917,1773207038779,-3000.0,0.00019999,2]
[408194918,1773207038788,-3000.0,0.00019999,2]
[408194919,1773207038797,-3000.0,0.00019999,2]
[408194920,1773207038806,-3000.0,0.00019999,2]
[408194921,1773207038816,-3000.0,0.00019999,2]
[408194922,1773207038825,-3000.0,0.00019999,2]
[408194923,1773207038834,-3000.0,0.00019999,2]
[408194924,1773207038843,-3000.0,0.00019999,2]
[408194925,1773207038852,-3000.0,0.00019999,2]
[408194926,1773207038861,-3000.0,0.00019999,2]
[408194927,1773207038870,-261.53875846,0.00019999,2]
[408194928,1773207038880,-15872.6898685,0.0002,2]
[408194929,1773207038894,-475.2949715,0.0002,2]
[408194930,1773207038905,-443.37301945,0.0002,2]
[408194931,1773207040605,-1357762.5676492,0.0002,2]
[408194932,1773207040617,-845.39777926,0.0002,2]
[408194953,1773207046151,-902.4970347,0.0002,2]
[408194962,1773207148798,500.0,8.6e-05,2]
[408194963,1773207149379,500.0,8.6e-05,2]
[408194964,1773207150503,544.18004214,8.6e-05,2]
[408194965,1773207150903,580.59796683,8.6e-05,2]
[408194966,1773207286965,169.42,0.00013,2]
[408194967,1773207340081,-271.47650063,0.00014088,2]
[408194968,1773207340106,-83.80610724,0.00014089,2]
[408194969,1773207340164,-215.97534263,0.00014089,2]
[408194970,1773207340245,-230.04627788,0.00014089,2]
[408194971,1773207340352,-25.99093324,0.00014089,2]
[408194972,1773207361408,355.28,0.0001402,7]
[408194973,1773207443862,500.0,9.089e-05,2]
[408194974,1773207444478,500.0,9.089e-05,2]
[408194975,1773207458023,500.0,9.089e-05,2]
[408194976,1773207465350,2040.43637967,0.00014089,2]
[408194977,1773207472936,486.34132834,0.00014089,2]
[408194978,1773207487824,179.72440983,0.00014089,2]
[408194979,1773207526569,-217.87576088,0.00014117,14]
[408194980,1773207526591,-103.12423912,0.00014188,2]
[408194981,1773207665152,425.54866228,0.00014089,2]
[408194982,1773207742290,500.0,9.089e-05,2]
[408194983,1773207749868,2109.58950211,0.00014089,2]
[408194984,1773207755635,500.0,9.089e-05,2]
[408194985,1773207824939,179.72440983,0.00014089,2]
[408194986,1773207858214,372.35507953,0.00014089,2]
[408194988,1773207975666,1836.39274164,0.00014089,2]
[408194989,1773208048330,325.81069458,0.00014089,2]
[408194990,1773208214685,246.2267,0.00014089,2]
[408194991,1773208219722,-151.0,0.00014181,2]
[408194992,1773208219757,-250.0,0.00014181,2]
[408194993,1773208219784,-188.67257488,0.00014181,2]
[408194994,1773208219812,-300.0,0.00014187,2]
[408194995,1773208219840,-1200.0,0.00014187,2]
[408194996,1773208219866,-188.67257488,0.00014188,2]
[408194997,1773208219898,-1696.93223886,0.00014188,2]
[408194998,1773208219927,-500.0,0.00014188,2]
[408194999,1773208224977,-500.0,0.00014188,2]
[408195000,1773208225007,-500.0,0.00014188,2]
[408195001,1773208225037,-500.0,0.00014188,2]
[408195002,1773208225066,-500.0,0.00014188,2]
[408195003,1773208225095,-500.0,0.00014188,2]
[408195004,1773208228053,-500.0,0.00014188,2]
[408195005,1773208228084,-500.0,0.00014188,2]
[408195006,1773208228115,-500.0,0.00014188,2]
[408195007,1773208228146,-500.0,0.00014188,2]
[408195008,1773208228179,-318.57674151,0.00014188,2]
[408195009,1773208230896,-500.0,0.00014188,2]
[408195010,1773208230926,-500.0,0.00014188,2]
[408195011,1773208230957,-500.0,0.00014188,2]
[408195012,1773208230989,-500.0,0.00014188,2]
[408195013,1773208231019,-500.0,0.00014188,2]
[408195019,1773208232340,-500.0,0.00014188,2]
[408195020,1773208232350,-508.75000001,0.00014188,2]
[408195021,1773208232361,-64.2604668,0.00014188,2]
[408195022,1773208232371,-500.0,0.00014188,2]
[408195023,1773208232380,-500.0,0.00014188,2]
[408195024,1773208232388,-500.0,0.00014188,2]
[408195025,1773208232397,-500.0,0.00014188,2]
[408195026,1773208232406,-500.0,0.00014188,2]
[408195027,1773208232415,-500.0,0.00014188,2]
[408195028,1773208232424,-500.0,0.00014188,2]
[408195029,1773208232433,-500.0,0.00014188,2]
[408195030,1773208232443,-500.0,0.00014188,2]
[408195031,1773208232452,-500.0,0.00014188,2]
[408195032,1773208232461,-500.0,0.00014188,2]
[408195034,1773208232471,-500.0,0.00014188,2]
[408195037,1773208232480,-500.0,0.00014188,2]
[408195039,1773208232489,-500.0,0.00014188,2]
[408195040,1773208232499,-300.0,0.00014188,2]
[408195043,1773208232509,-179.72440983,0.000149,2]
[408195045,1773208232519,-500.0,0.00015,30]
[408195047,1773208232528,-502.76291619,0.00015,30]
[408195049,1773208232537,-500.0,0.00015,30]
[408195050,1773208232546,-766.76115223,0.00015,30]
[408195051,1773208232555,-420.0,0.0001554,2]
[408195052,1773208232565,-1633.64,0.00015593,2]
[408195053,1773208232574,-1265.60269206,0.00015597,2]
[408195054,1773208232584,-374.7733,0.00015597,2]
[408195055,1773208232593,-556.99359659,0.00015599,2]
[408195056,1773208232603,-206.78369972,0.00015599,2]
[408195057,1773208232612,-250.0,0.00015599,2]
[408195058,1773208232622,-480.0,0.00015606,2]
[408195059,1773208232631,-444.44260249,0.00015716,2]
[408195060,1773208232640,-500.0,0.00016999,2]
[408195061,1773208232650,-500.0,0.00016999,2]
[408195062,1773208232659,-503.0,0.00017,2]
[408195063,1773208232668,-587.0,0.00017021,2]
[408195064,1773208232677,-150.99,0.00017728,2]
[408195065,1773208232686,-32746.57121221,0.00017728,2]
[408195066,1773208232697,-30561.27365349,0.00017728,2]
[408195067,1773208232709,-48930.5851343,0.00017728,2]
[408195068,1773208232719,-9999.99,0.00017728,2]
[408195069,1773208232731,-9999.99,0.00017728,2]
[408195070,1773208232741,-325.12,0.00017728,2]
[408195071,1773208232751,-232.0,0.00017759,2]
[408195072,1773208232761,-500.0,0.00017773,2]
[408195073,1773208232771,-500.0,0.00017773,2]